fUSD/lending_fUSD_20240223
["ID","MTS","AMOUNT","RATE_DAILY","PERIOD"]
[314938358,1708689043662,-500.0,0.00027397,2]
[314938359,1708689043671,-500.0,0.00027397,2]
[314938360,1708689043681,-500.0,0.00027397,2]
[314938361,1708689043690,-500.0,0.00027397,2]
[314938362,1708689043700,-591.55,0.00027397,2]
[314938363,1708689043709,-1332.13,0.00027397,2]
[314938364,1708689043722,-500.0,0.00027397,2]
[314938365,1708689043731,-500.0,0.00027397,2]
[314938366,1708689043740,-2034.04,0.00027397,2]
[314938367,1708689043749,-502.17,0.00027397,2]
[314938368,1708689043758,-973.79,0.00027397,2]
[314938369,1708689043767,-500.0,0.00027397,2]
[314938370,1708689043776,-500.0,0.00027397,2]
[314938371,1708689043785,-710.76,0.00027397,2]
[314938372,1708689043796,-500.0,0.00027397,2]
[314938373,1708689043805,-276.58469195,0.00027397,2]
[314938374,1708689043813,-500.0,0.00027397,2]
[314938375,1708689043823,-644.31,0.00027397,2]
[314938376,1708689043832,-500.0,0.00027397,2]
[314938377,1708689043840,-500.0,0.00027397,2]
[314938378,1708689043850,-500.0,0.00027397,2]
[314938379,1708689043859,-500.0,0.00027397,2]
[314938380,1708689043868,-544.93,0.00027397,2]
[314938381,1708689043877,-880.4,0.00027397,2]
[314938382,1708689043886,-500.0,0.00027397,2]
[314938383,1708689043895,-500.0,0.00027397,2]
[314938384,1708689043904,-500.0,0.00027397,2]
[314938385,1708689043913,-1086.29,0.00027397,2]
[314938386,1708689043922,-398.41143557,0.00027397,2]
[314938387,1708689043931,-626.27,0.00027397,2]
[314938388,1708689043940,-784.66,0.00027397,2]
[314938389,1708689043948,-500.0,0.00027397,2]
[314938390,1708689043957,-500.0,0.00027397,2]
[314938391,1708689043966,-1210.95,0.00027397,2]
[314938392,1708689043976,-1439.22,0.00027397,2]
[314938393,1708689043985,-500.0,0.00027397,2]
[314938394,1708689043994,-500.0,0.00027397,2]
[314938395,1708689044003,-903.38,0.00027397,2]
[314938396,1708689044013,-500.0,0.00027397,2]
[314938397,1708689044022,-500.0,0.00027397,2]
[314938398,1708689044031,-500.0,0.00027397,2]
[314938399,1708689044040,-500.0,0.00027397,2]
[314938400,1708689044050,-500.0,0.00027397,2]
[314938401,1708689044059,-1579.04,0.00027397,2]
[314938402,1708689044068,-500.0,0.00027397,2]
[314938403,1708689044077,-500.0,0.00027397,2]
[314938404,1708689044086,-2554.43,0.00027397,2]
[314938405,1708689044095,-1031.36,0.00027397,2]
[314938406,1708689044104,-500.0,0.00027397,2]
[314938407,1708689044113,-500.0,0.00027397,2]
[314938408,1708689044122,-500.0,0.00027397,2]
[314938409,1708689044131,-500.0,0.00027397,2]
[314938410,1708689044140,-2764.36,0.00027397,2]
[314938411,1708689044149,-616.01,0.00027397,2]
[314938412,1708689044158,-500.0,0.00027397,2]
[314938413,1708689044168,-500.0,0.00027397,2]
[314938414,1708689044177,-2422.49,0.00027397,2]
[314938415,1708689044185,-520.19,0.00027397,2]
[314938416,1708689044194,-500.0,0.00027397,2]
[314938417,1708689044203,-500.0,0.00027397,2]
[314938418,1708689044212,-500.0,0.00027397,2]
[314938419,1708689044221,-537.26,0.00027397,2]
[314938420,1708689044231,-500.0,0.00027397,2]
[314938421,1708689044239,-654.76,0.00027397,2]
[314938422,1708689044248,-500.0,0.00027397,2]
[314938423,1708689044258,-548.39811463,0.00027397,2]
[314938424,1708689044267,-500.0,0.00027397,2]
[314938425,1708689044276,-500.0,0.00027397,2]
[314938426,1708689044285,-552.24,0.00027397,2]
[314938427,1708689044295,-468.39278718,0.00027397,2]
[314938428,1708689044304,-500.0,0.00027397,2]
[314938429,1708689044313,-2554.34,0.00027397,2]
[314938430,1708689044322,-500.0,0.00027397,2]
[314938431,1708689044331,-500.0,0.00027397,2]
[314938432,1708689044341,-500.0,0.00027397,2]
[314938433,1708689044350,-500.0,0.00027397,2]
[314938434,1708689044359,-500.0,0.00027397,2]
[314938435,1708689044368,-500.0,0.00027397,2]
[314938436,1708689044377,-500.0,0.00027397,2]
[314938437,1708689044386,-500.0,0.00027397,2]
[314938438,1708689044395,-500.0,0.00027397,2]
[314938439,1708689044404,-500.0,0.00027397,2]
[314938440,1708689044413,-803.72,0.00027397,2]
[314938441,1708689044422,-198.39,0.00027397,2]
[314938442,1708689044431,-198.32,0.00027397,10]
[314938443,1708689044440,-405.98,0.000274,2]
[314938444,1708689044449,-405.98,0.000274,2]
[314938445,1708689044458,-405.98,0.000274,2]
[314938446,1708689044468,-405.98,0.000274,2]
[314938447,1708689044477,-405.98,0.000274,2]
[314938448,1708689044485,-405.98,0.000274,2]
[314938449,1708689044494,-405.98,0.00027401,2]
[314938450,1708689044503,-617.59624762,0.00027409,2]
[314938451,1708689044513,-709.77,0.0002741,2]
[314938452,1708689044522,-2935.2,0.0002741,2]
[314938453,1708689044531,-500.0,0.0002741,2]
[314938454,1708689044540,-2141.11,0.0002741,2]
[314938455,1708689044548,-500.0,0.0002741,2]
[314938456,1708689044557,-542.1,0.0002741,2]
[314938457,1708689044566,-1270.57,0.0002741,2]
[314938458,1708689044575,-500.0,0.0002741,2]
[314938459,1708689044584,-500.0,0.0002741,2]
[314938460,1708689044593,-1793.85,0.0002741,2]
[314938461,1708689044602,-584.6,0.0002741,2]
[314938462,1708689044611,-500.0,0.0002741,2]
[314938463,1708689044619,-2883.7,0.0002741,2]
[314938464,1708689044628,-500.0,0.0002741,2]
[314938465,1708689044637,-8973.04,0.0002741,2]
[314938466,1708689044646,-2609.56,0.0002741,2]
[314938467,1708689044655,-500.0,0.0002741,2]
[314938468,1708689044664,-3667.96,0.0002741,2]
[314938469,1708689044673,-708.3,0.0002741,2]
[314938470,1708689044681,-410.13745614,0.0002741,2]
[314938471,1708689044690,-150000.0,0.00027411,2]
[314938472,1708689044699,-107726.89269631,0.00027411,2]
[314938473,1708689044709,-513.62815596,0.00027411,2]
[314938474,1708689044722,-500.0,0.00027411,2]
[314938475,1708689044731,-500.0,0.00027411,2]
[314938476,1708689044740,-547.82097648,0.00027411,2]
[314938477,1708689044750,-500.0,0.00027411,2]
[314938478,1708689044758,-588.14780775,0.00027411,2]
[314938479,1708689044768,-500.0,0.00027411,2]
[314938480,1708689044778,-1000.0,0.00027411,7]
[314938481,1708689044787,-500.0,0.00027411,2]
[314938482,1708689044798,-500.0,0.00027411,2]
[314938483,1708689044807,-500.0,0.00027411,2]
[314938484,1708689044817,-500.0,0.00027411,2]
[314938485,1708689044826,-500.0,0.00027411,2]
[314938486,1708689044835,-500.0,0.00027411,2]
[314938487,1708689044844,-500.0,0.00027411,2]
[314938488,1708689044854,-500.0,0.00027411,2]
[314938489,1708689044863,-500.0,0.00027411,2]
[314938490,1708689044872,-511.62176397,0.00027411,2]
[314938491,1708689044881,-500.0,0.00027411,2]
[314938492,1708689044890,-500.0,0.00027411,2]
[314938493,1708689044899,-500.0,0.00027411,2]
[314938494,1708689044909,-500.0,0.00027411,2]
[314938495,1708689044917,-500.0,0.00027411,2]
[314938496,1708689044926,-555.31447177,0.00027411,14]
[314938497,1708689044936,-500.0,0.00027411,2]
[314938498,1708689044945,-500.0,0.00027411,2]
[314938499,1708689044954,-681.75,0.00027411,2]
[314938500,1708689044963,-500.0,0.00027411,2]
[314938501,1708689044972,-500.0,0.00027411,2]
[314938502,1708689044980,-826.76,0.00027411,2]
[314938503,1708689044989,-500.0,0.00027411,2]
[314938504,1708689044998,-500.0,0.00027411,2]
[314938505,1708689045007,-679.11,0.00027411,2]
[314938506,1708689045017,-443.83517727,0.00027411,2]
[314938507,1708689045026,-540.44,0.00027411,2]
[314938508,1708689045035,-555.52778279,0.00027411,2]
[314938509,1708689045045,-524.04724793,0.00027411,2]
[314938510,1708689045054,-500.0,0.00027411,2]
[314938511,1708689045063,-500.0,0.00027411,2]
[314938512,1708689045072,-500.0,0.00027411,2]
[314938513,1708689045082,-500.0,0.00027411,2]
[314938514,1708689045091,-500.0,0.00027411,2]
[314938515,1708689045100,-568.25429604,0.00027411,2]
[314938516,1708689045110,-500.0,0.00027411,2]
[314938517,1708689045119,-500.0,0.00027411,2]
[314938518,1708689045127,-179.38,0.00027411,2]
[314938519,1708689045136,-1001.84,0.00027411,2]
[314938520,1708689045145,-500.0,0.00027411,2]
[314938521,1708689045155,-157.64077634,0.00027411,2]
[314938522,1708689045164,-515.34215446,0.00027411,2]
[314938523,1708689045173,-500.0,0.00027411,2]
[314938524,1708689045182,-500.0,0.00027411,2]
[314938525,1708689045192,-524.66519524,0.00027411,2]
[314938526,1708689045201,-500.0,0.00027411,2]
[314938527,1708689045210,-592.54032148,0.00027411,2]
[314938528,1708689045219,-506.08,0.00027411,2]
[314938529,1708689045228,-500.0,0.00027411,2]
[314938530,1708689045237,-530.17967285,0.00027411,2]
[314938531,1708689045247,-500.0,0.00027411,2]
[314938532,1708689045257,-500.0,0.00027411,2]
[314938533,1708689045267,-500.0,0.00027411,2]
[314938534,1708689045276,-500.0,0.00027411,2]
[314938535,1708689045285,-500.0,0.00027411,2]
[314938536,1708689045294,-500.0,0.00027411,2]
[314938537,1708689045304,-500.0,0.00027411,2]
[314938538,1708689045313,-500.0,0.00027411,2]
[314938539,1708689045322,-559.16,0.00027411,2]
[314938540,1708689045332,-233.81411453,0.00027411,2]
[314938541,1708689045342,-834.59,0.00027411,2]
[314938542,1708689045352,-500.0,0.00027411,2]
[314938543,1708689045361,-1472.71,0.00027411,2]
[314938544,1708689045371,-500.0,0.00027411,2]
[314938545,1708689045380,-500.0,0.00027411,2]
[314938546,1708689045390,-500.0,0.00027411,2]
[314938547,1708689045399,-500.0,0.00027411,2]
[314938548,1708689045409,-500.0,0.00027411,2]
[314938549,1708689045419,-538.78056884,0.00027411,2]
[314938550,1708689045428,-500.0,0.00027411,2]
[314938551,1708689045437,-158.077293,0.00027412,7]
[314938552,1708689045446,-228.81161,0.00027412,7]
[314938553,1708689045455,-156.336527,0.00027412,7]
[314938554,1708689045465,-24599.69194002,0.00027412,2]
[314938555,1708689045474,-245000.0,0.00027412,2]
[314938556,1708689045483,-150.0,0.00027414,2]
[314938557,1708689045492,-626.95777136,0.00027434,2]
[314938558,1708689045501,-383.87114246,0.00027434,2]
[314938559,1708689045511,-1437.95399615,0.00027434,2]
[314938560,1708689045520,-1932.9798461,0.00027434,2]
[314938561,1708689046175,-500.0,0.00027397,2]
[314938562,1708689046184,-393.00253833,0.00027397,2]
[314938564,1708689070306,207468.88515826,0.00023,2]
[314938565,1708689070332,86984.64436633,0.00023,2]
[314938566,1708689114770,8151.71931588,0.0002276,2]
[314938568,1708689446491,7971.0,0.0002702,7]
[314938569,1708689462560,0.1242667,0.00025658,10]
[314938570,1708689625928,6848.0,0.000235,2]
[314938571,1708689844628,208.0,0.00023089,2]
[314938572,1708689869008,2155.48364747,0.0002348,2]
[314938573,1708689921196,407.0,0.00027,14]
[314938574,1708690044233,1688.0,0.000235,2]
[314938575,1708690065897,1688.0,0.000235,2]
[314938576,1708690075858,1688.0,0.000235,2]
[314938577,1708690086518,1688.0,0.000235,2]
[314938578,1708690095029,1688.0,0.000235,2]
[314938579,1708690103657,1688.0,0.000235,2]
[314938580,1708690104627,1000.0,0.00027,14]
[314938581,1708690111511,1688.0,0.000235,2]
[314938582,1708690119824,1688.0,0.000235,2]
[314938583,1708690128440,1688.0,0.000235,2]
[314938584,1708690136840,1688.0,0.000235,2]
[314938586,1708690153436,1695.1,0.000235,2]
[314938595,1708690231788,-1287.25840715,0.00023611,2]
[314938596,1708690232003,-400.0,0.00023611,2]
[314938597,1708690232062,-468.22524032,0.00023611,2]
[314938598,1708690232072,-681.16,0.00023612,2]
[314938599,1708690232081,-221.46202299,0.000249,2]
[314938897,1708690237630,-2769.15427701,0.000249,2]
[314938898,1708690237639,-1008.53065537,0.00025164,2]
[314938899,1708690237649,-208.0,0.00025165,2]
[314938900,1708690237658,-2000.0,0.00025206,2]
[314938901,1708690237667,-150.0,0.0002521,2]
[314938902,1708690237676,-200.0,0.00025211,2]
[314938903,1708690237685,-500.0,0.0002522,2]
[314938904,1708690237694,-250.0,0.00025221,2]
[314938905,1708690237704,-1332.18,0.00025234,2]
[314938906,1708690237713,-150.0,0.00025308,2]
[314938908,1708690237723,-23900.0,0.00025309,2]
[314938910,1708690237732,-500.0,0.00025318,2]
[314938911,1708690237741,-155.08,0.00025395,2]
[314938912,1708690237751,-777.57417191,0.000254,2]
[314938913,1708690237760,-499.99,0.000254,2]
[314938914,1708690237769,-500.0,0.00025453,2]
[314938915,1708690237778,-414.08,0.00025501,2]
[314938916,1708690237787,-174.07,0.00025501,10]
[314938917,1708690237797,-9999.99,0.00025501,2]
[314938918,1708690237806,-2756.1,0.00025501,2]
[314938919,1708690237815,-250.0,0.00025521,2]
[314938920,1708690237824,-401.23,0.00025526,2]
[314938921,1708690237833,-491.18,0.00025527,2]
[314938922,1708690237843,-200.56,0.0002556,2]
[314938923,1708690237856,-155.08,0.0002556,2]
[314938924,1708690237865,-162.70472776,0.00025636,2]
[314938925,1708690237874,-155.08,0.00025726,2]
[314938926,1708690237883,-1141.38,0.00025736,2]
[314938927,1708690237892,-155.01,0.00025768,2]
[314938928,1708690237901,-598.77,0.00025811,2]
[314938929,1708690237911,-162.70472771,0.00025848,2]
[314938930,1708690237920,-1811.86,0.00025851,2]
[314938931,1708690237929,-681.16,0.00025876,2]
[314938932,1708690237938,-155.08,0.00025891,2]
[314938933,1708690237946,-169.02,0.00025909,2]
[314938934,1708690237955,-150.0,0.00026007,2]
[314938935,1708690237965,-155.08,0.00026056,2]
[314938937,1708690237974,-162.70472771,0.00026061,2]
[314938939,1708690237983,-150.0,0.00026079,2]
[314938941,1708690237992,-150.0,0.00026081,2]
[314938943,1708690238001,-155.08,0.00026222,2]
[314938944,1708690238010,-162.70472771,0.00026273,2]
[314938946,1708690238019,-150.0,0.0002629,2]
[314938948,1708690238028,-161.0,0.00026349,2]
[314938949,1708690238037,-1844.49,0.00026353,2]
[314938951,1708690238047,-155.08,0.00026387,2]
[314938952,1708690238056,-1836.43,0.00026446,2]
[314938955,1708690238068,-1844.13,0.0002645,2]
[314938957,1708690238077,-150.0,0.00026471,2]
[314938959,1708690238086,-155.12,0.00026483,2]
[314938961,1708690238094,-162.70472771,0.00026485,2]
[314938962,1708690238103,-1776.34,0.00026503,2]
[314938964,1708690238113,-150.0,0.0002654,2]
[314938966,1708690238121,-151.57423126,0.0002654,2]
[314938967,1708690238130,-177.74,0.0002654,2]
[314938969,1708690238141,-155.08,0.00026553,2]
[314938971,1708690238149,-250.0,0.00026671,2]
[314938973,1708690238158,-162.70472771,0.00026697,2]
[314938974,1708690238167,-150.0,0.000267,2]
[314938976,1708690238176,-155.08,0.00026718,2]
[314938977,1708690238185,-150.0,0.00026755,2]
[314938978,1708690238193,-155.12,0.00026777,2]
[314938979,1708690238202,-150.0,0.00026812,2]
[314938980,1708690238211,-150.0,0.0002682,2]
[314938981,1708690238220,-200.0,0.00026865,2]
[314938982,1708690238230,-1382.6614205,0.00026871,2]
[314938983,1708690238238,-1332.18,0.00026878,2]
[314938984,1708690238247,-656.46584425,0.00026897,2]
[314938985,1708690238296,-19971.65267101,0.00026897,2]
[314938986,1708690238306,-5290.62523369,0.00026897,2]
[314938987,1708690238315,-162.70472771,0.0002691,2]
[314938988,1708690238324,-153.81336378,0.0002699,2]
[314938989,1708690238334,-97119.11427801,0.00026997,2]
[314938990,1708690238345,-122677.45462199,0.00026997,2]
[314938991,1708690238354,-3387.4121,0.00026997,2]
[314938992,1708690238365,-898.64707679,0.00027,2]
[314938993,1708690238374,-1000.0,0.00027,2]
[314938994,1708690238383,-150.1,0.00027,3]
[314938995,1708690238392,-155.12,0.00027071,2]
[314938996,1708690238402,-150.0,0.00027086,2]
[314938997,1708690238411,-150.0,0.00027088,2]
[314938998,1708690238420,-354.27,0.00027088,2]
[314938999,1708690238430,-183.55964388,0.00027097,2]
[314939000,1708690238440,-1500.0,0.00027098,2]
[314939001,1708690238451,-162.70472771,0.00027122,2]
[314939002,1708690238461,-1382.6614205,0.00027159,2]
[314939003,1708690238471,-161.0,0.00027171,2]
[314939004,1708690238481,-155.0,0.00027196,2]
[314939005,1708690238491,-207336.1131,0.00027197,2]
[314939006,1708690238500,-17199.0125,0.00027197,2]
[314939007,1708690238510,-20628.11851522,0.00027217,2]
[314939008,1708690238520,-5000.0,0.00027297,2]
[314939009,1708690238531,-539.63335447,0.00027297,2]
[314939010,1708690238540,-171.69564993,0.0002731,2]
[314939011,1708690238553,-162.70472771,0.00027334,2]
[314939012,1708690238563,-172.07059808,0.00027334,2]
[314939013,1708690238572,-3268.46259461,0.00027334,2]
[314939014,1708690238581,-255.91409498,0.00027334,2]
[314939015,1708690238590,-10124.65699999,0.00027334,2]
[314939016,1708690238600,-958.63599744,0.00027334,2]
[314939017,1708690238609,-1935.02097351,0.00027334,2]
[314939018,1708690238618,-150.0,0.00027339,2]
[314939019,1708690238627,-155.12,0.00027366,2]
[314939020,1708690238636,-298.88004715,0.00027396,2]
[314939021,1708690238645,-193.86263835,0.00027396,2]
[314939022,1708690238654,-167.69049477,0.00027396,2]
[314939023,1708690238664,-500.0,0.00027397,2]
[314939024,1708690238673,-500.0,0.00027397,2]
[314939025,1708690238692,-1000.0,0.00027397,7]
[314939026,1708690238704,-500.0,0.00027397,2]
[314939027,1708690238714,-500.0,0.00027397,2]
[314939028,1708690238723,-500.0,0.00027397,2]
[314939029,1708690238732,-500.0,0.00027397,2]
[314939030,1708690238741,-500.0,0.00027397,2]
[314939031,1708690238751,-526.62205797,0.00027397,2]
[314939032,1708690238760,-500.0,0.00027397,2]
[314939033,1708690238769,-500.0,0.00027397,2]
[314939034,1708690238778,-500.0,0.00027397,2]
[314939035,1708690238787,-547.4208614,0.00027397,2]
[314939036,1708690238798,-637.88426934,0.00027397,2]
[314939037,1708690238807,-525.05853907,0.00027397,2]
[314939038,1708690238817,-500.0,0.00027397,2]
[314939039,1708690238826,-500.0,0.00027397,2]
[314939040,1708690238836,-500.0,0.00027397,2]
[314939041,1708690238845,-500.0,0.00027397,2]
[314939042,1708690238855,-500.0,0.00027397,2]
[314939043,1708690238864,-500.0,0.00027397,2]
[314939044,1708690238873,-530.86890465,0.00027397,2]
[314939045,1708690238883,-500.0,0.00027397,2]
[314939046,1708690238892,-574.0703694,0.00027397,2]
[314939047,1708690238902,-500.0,0.00027397,2]
[314939048,1708690238911,-500.0,0.00027397,2]
[314939049,1708690238920,-525.55266546,0.00027397,2]
[314939050,1708690238929,-500.0,0.00027397,2]
[314939051,1708690238938,-500.0,0.00027397,2]
[314939052,1708690238947,-500.0,0.00027397,2]
[314939053,1708690238956,-518.63520686,0.00027397,2]
[314939054,1708690238966,-1209.21,0.00027397,2]
[314939055,1708690238975,-789.7,0.00027397,2]
[314939056,1708690238984,-500.0,0.00027397,2]
[314939057,1708690238993,-518.30513174,0.00027397,2]
[314939058,1708690239003,-560.5437256,0.00027397,2]
[314939059,1708690239012,-500.0,0.00027397,2]
[314939060,1708690239021,-500.0,0.00027397,2]
[314939061,1708690239030,-500.0,0.00027397,2]
[314939062,1708690239040,-502.16707777,0.00027397,2]
[314939063,1708690239051,-500.0,0.00027397,2]
[314939064,1708690239061,-500.0,0.00027397,2]
[314939065,1708690239072,-609.28033016,0.00027397,2]
[314939066,1708690239081,-500.0,0.00027397,2]
[314939067,1708690239091,-626.23809378,0.00027397,2]
[314939068,1708690239100,-500.0,0.00027397,2]
[314939069,1708690239111,-500.0,0.00027397,2]
[314939070,1708690239120,-571.88526246,0.00027397,2]
[314939071,1708690239131,-500.0,0.00027397,2]
[314939072,1708690239142,-500.0,0.00027397,2]
[314939073,1708690239152,-511.76072097,0.00027397,2]
[314939074,1708690239162,-500.0,0.00027397,2]
[314939075,1708690239171,-500.0,0.00027397,2]
[314939076,1708690239180,-500.0,0.00027397,2]
[314939077,1708690239190,-160.78429569,0.00027397,2]
[314939078,1708690239199,-746.34,0.00027397,2]
[314939079,1708690239208,-500.0,0.00027397,2]
[314939080,1708690239218,-345.2029675,0.00027397,2]
[314939081,1708690239227,-3000.0,0.00027397,2]
[314939082,1708690239236,-4574.0238267,0.00027397,2]
[314939083,1708690239246,-500.0,0.00027397,2]
[314939084,1708690239255,-500.0,0.00027397,2]
[314939085,1708690239265,-542.66278243,0.00027397,2]
[314939086,1708690239275,-500.0,0.00027397,2]
[314939087,1708690239285,-535.39491825,0.00027397,2]
[314939088,1708690239295,-500.0,0.00027397,2]
[314939089,1708690239306,-545.97610155,0.00027397,2]
[314939090,1708690239315,-500.0,0.00027397,2]
[314939091,1708690239325,-500.0,0.00027397,2]
[314939092,1708690239334,-827.14,0.00027397,2]
[314939093,1708690239344,-566.53216752,0.00027397,2]
[314939094,1708690239354,-500.0,0.00027397,2]
[314939095,1708690239364,-500.0,0.00027397,2]
[314939096,1708690239374,-500.0,0.00027397,2]
[314939097,1708690239384,-500.0,0.00027397,2]
[314939098,1708690239399,-500.0,0.00027397,2]
[314939099,1708690239409,-500.0,0.00027397,2]
[314939100,1708690239419,-419.04425932,0.00027397,2]
[314939101,1708690239429,-286.06615238,0.00027397,2]
[314939102,1708690239439,-500.0,0.00027397,2]
[314939103,1708690239449,-500.0,0.00027397,2]
[314939104,1708690239459,-514.97585604,0.00027397,2]
[314939105,1708690239469,-500.0,0.00027397,2]
[314939106,1708690239480,-500.0,0.00027397,2]
[314939107,1708690239489,-500.0,0.00027397,2]
[314939108,1708690239499,-500.0,0.00027397,2]
[314939109,1708690239509,-500.0,0.00027397,2]
[314939110,1708690239519,-500.0,0.00027397,2]
[314939111,1708690239529,-500.0,0.00027397,2]
[314939112,1708690239539,-551.62,0.00027397,2]
[314939113,1708690239551,-647.59106198,0.00027397,2]
[314939114,1708690239560,-500.0,0.00027397,2]
[314939115,1708690239570,-513.20779016,0.00027397,2]
[314939116,1708690239580,-500.0,0.00027397,2]
[314939117,1708690239589,-500.0,0.00027397,2]
[314939118,1708690239599,-500.0,0.00027397,2]
[314939119,1708690239609,-649.6152229,0.00027397,2]
[314939120,1708690239619,-500.0,0.00027397,2]
[314939121,1708690239629,-500.0,0.00027397,2]
[314939122,1708690239639,-500.0,0.00027397,2]
[314939123,1708690239648,-526.47443841,0.00027397,2]
[314939124,1708690239657,-622.36,0.00027397,2]
[314939125,1708690239667,-291.01353156,0.00027397,2]
[314939126,1708690239677,-500.0,0.00027397,2]
[314939127,1708690239687,-646.68350245,0.00027397,2]
[314939128,1708690239696,-500.0,0.00027397,2]
[314939129,1708690239706,-515.55622738,0.00027397,2]
[314939130,1708690239716,-500.0,0.00027397,2]
[314939131,1708690239725,-500.0,0.00027397,2]
[314939132,1708690239735,-500.0,0.00027397,2]
[314939133,1708690239745,-500.0,0.00027397,2]
[314939134,1708690239755,-500.0,0.00027397,2]
[314939135,1708690239764,-500.0,0.00027397,2]
[314939136,1708690239773,-643.19825881,0.00027397,2]
[314939137,1708690239782,-500.0,0.00027397,2]
[314939138,1708690239791,-500.0,0.00027397,2]
[314939139,1708690239805,-500.0,0.00027397,2]
[314939140,1708690239814,-500.0,0.00027397,2]
[314939141,1708690239823,-500.0,0.00027397,2]
[314939142,1708690239833,-500.0,0.00027397,2]
[314939143,1708690239842,-500.0,0.00027397,2]
[314939144,1708690239852,-500.0,0.00027397,2]
[314939145,1708690239861,-500.0,0.00027397,2]
[314939146,1708690239870,-500.0,0.00027397,2]
[314939147,1708690239880,-500.0,0.00027397,2]
[314939148,1708690239889,-500.0,0.00027397,2]
[314939149,1708690239898,-500.0,0.00027397,2]
[314939150,1708690239907,-500.0,0.00027397,2]
[314939151,1708690239916,-500.0,0.00027397,2]
[314939152,1708690239926,-500.0,0.00027397,2]
[314939153,1708690239934,-500.0,0.00027397,2]
[314939154,1708690239944,-500.0,0.00027397,2]
[314939155,1708690239953,-500.0,0.00027397,2]
[314939156,1708690239962,-500.0,0.00027397,2]
[314939157,1708690239971,-500.0,0.00027397,2]
[314939158,1708690239980,-500.0,0.00027397,2]
[314939159,1708690239989,-500.0,0.00027397,2]
[314939160,1708690239998,-500.0,0.00027397,2]
[314939161,1708690240007,-500.0,0.00027397,2]
[314939162,1708690240016,-500.0,0.00027397,2]
[314939163,1708690240025,-500.0,0.00027397,2]
[314939164,1708690240034,-500.0,0.00027397,2]
[314939165,1708690240044,-500.0,0.00027397,2]
[314939166,1708690240059,-500.0,0.00027397,2]
[314939167,1708690240068,-622.24239401,0.00027397,2]
[314939168,1708690240078,-500.0,0.00027397,2]
[314939169,1708690240086,-500.0,0.00027397,2]
[314939170,1708690240096,-500.0,0.00027397,2]
[314939171,1708690240110,-500.0,0.00027397,2]
[314939172,1708690240119,-500.0,0.00027397,2]
[314939173,1708690240128,-500.0,0.00027397,2]
[314939174,1708690240139,-500.0,0.00027397,2]
[314939175,1708690240149,-500.0,0.00027397,2]
[314939176,1708690240158,-500.0,0.00027397,2]
[314939177,1708690240167,-632.22,0.00027397,2]
[314939178,1708690240176,-500.0,0.00027397,2]
[314939179,1708690240185,-500.0,0.00027397,2]
[314939180,1708690240196,-500.0,0.00027397,2]
[314939181,1708690240206,-500.0,0.00027397,2]
[314939182,1708690240217,-500.0,0.00027397,2]
[314939183,1708690240228,-330.35920952,0.00027397,2]
[314939184,1708690240239,-500.0,0.00027397,2]
[314939185,1708690240250,-500.0,0.00027397,2]